[Event "The Allsvenskan 2024/25 Div I 3: SS Manhem - Linkopings ASS"]
[Site "Goteborgs Schackcentrum, Vegatan 20, Gothenburg, Sweden"]
[Date "2025.03.15"]
[Round "1.4"]
[White "Loay, Sameer"]
[Black "Pepic, Rizo"]
[Result "1-0"]
[TimeControl "90 minutes for 40 moves + 30 minutes for the rest of the game + 30 seconds per move from move one."]
[WhiteTitle "IM"]
[WhiteFideId "8104239"]
[BlackFideId "906760"]
[WhiteElo "2216"]
[BlackElo "2159"]

1. e4 {[%clk 01:30:57]} {[%emt 00:00:03]} e5 {[%clk 01:30:39]} {[%emt
00:00:20]} 2. Bc4 {[%clk 01:31:18]} {[%emt 00:00:10]} Nf6 {[%clk 01:20:28]}
{[%emt 00:10:40]} 3. d4 {[%clk 01:31:13]} {[%emt 00:00:36]} exd4 {[%clk
01:17:35]} {[%emt 00:03:23]} 4. Nf3 {[%clk 01:31:38]} {[%emt 00:00:05]} Nc6
{[%clk 01:06:39]} {[%emt 00:11:26]} 5. O-O {[%clk 01:31:50]} {[%emt 00:00:18]}
d6 {[%clk 01:03:24]} {[%emt 00:03:44]} 6. Nxd4 {[%clk 01:19:04]} {[%emt
00:13:18]} Be7 {[%clk 01:01:19]} {[%emt 00:02:33]} 7. Nxc6 {[%clk 01:12:30]}
{[%emt 00:07:05]} bxc6 {[%clk 01:01:39]} {[%emt 00:00:10]} 8. Nc3 {[%clk
01:07:23]} {[%emt 00:05:38]} O-O {[%clk 01:01:27]} {[%emt 00:00:39]} 9. h3
{[%clk 01:06:08]} {[%emt 00:01:47]} Nd7 {[%clk 01:00:09]} {[%emt 00:01:47]} 10.
Be3 {[%clk 00:58:07]} {[%emt 00:08:32]} Bf6 {[%clk 00:58:20]} {[%emt 00:02:18]}
11. Qd2 {[%clk 00:55:12]} {[%emt 00:03:26]} Re8 {[%clk 00:56:23]} {[%emt
00:02:26]} 12. Rfe1 {[%clk 00:55:08]} {[%emt 00:00:34]} Nb6 {[%clk 00:48:49]}
{[%emt 00:08:04]} 13. Bf1 {[%clk 00:50:11]} {[%emt 00:05:27]} Bd7 {[%clk
00:41:04]} {[%emt 00:08:16]} 14. a4 {[%clk 00:47:19]} {[%emt 00:03:23]} Be6
{[%clk 00:19:41]} {[%emt 00:21:52]} 15. b3 {[%clk 00:43:15]} {[%emt 00:04:34]}
Nd7 {[%clk 00:09:43]} {[%emt 00:10:28]} 16. Rad1 {[%clk 00:43:20]} {[%emt
00:00:25]} Nf8 {[%clk 00:09:12]} {[%emt 00:01:01]} 17. Ne2 {[%emt 00:06:43]}
Qb8 {[%clk 00:08:14]} 18. Nf4 {[%clk 00:37:58]} {[%emt 00:01:06]} Bg5 {[%clk
00:05:36]} {[%emt 00:03:08]} 19. Qc3 {[%clk 00:37:01]} {[%emt 00:01:27]} Bxf4
{[%clk 00:05:15]} {[%emt 00:00:52]} 20. Bxf4 {[%clk 00:37:25]} {[%emt
00:00:06]} Qb7 {[%clk 00:05:04]} {[%emt 00:00:42]} 21. Bc1 {[%clk 00:36:56]}
{[%emt 00:00:58]} f6 {[%clk 00:05:03]} {[%emt 00:00:30]} 22. Bb2 {[%clk
00:35:36]} {[%emt 00:01:50]} Bf7 {[%clk 00:04:27]} {[%emt 00:01:08]} 23. Rd3
{[%clk 00:33:07]} {[%emt 00:02:58]} c5 {[%clk 00:02:27]} {[%emt 00:02:31]} 24.
Rg3 {[%clk 00:33:24]} {[%emt 00:00:11]} Ng6 {[%clk 00:02:27]} {[%emt 00:00:31]}
25. h4 {[%clk 00:28:47]} {[%emt 00:05:06]} Rxe4 {[%clk 00:00:52]} {[%emt
00:02:07]} 26. Qf3 {[%clk 00:29:12]} {[%emt 00:00:04]} Rb4 {[%clk 00:01:18]}
{[%emt 00:00:04]} 27. Qxb7 {[%clk 00:28:23]} {[%emt 00:01:20]} Rxb7 {[%clk
00:01:47]} {[%emt 00:00:01]} 28. h5 {[%clk 00:28:02]} {[%emt 00:00:50]} Ne5
{[%clk 00:02:10]} {[%emt 00:00:07]} 29. f4 {[%clk 00:28:20]} {[%emt 00:00:12]}
Bxh5 {[%clk 00:01:26]} {[%emt 00:01:14]} 30. fxe5 {[%clk 00:28:17]} {[%emt
00:00:34]} fxe5 {[%emt 00:00:04]} 31. Bxe5 {[%clk 00:17:30]} {[%emt 00:11:13]}
dxe5 {[%clk 00:02:02]} {[%emt 00:00:23]} 32. Ree3 {[%emt 00:00:03]} e4 33. Rxe4
{[%clk 00:17:57]} Bf7 {[%clk 00:02:10]} {[%emt 00:00:23]} 34. Re5 {[%clk
00:16:05]} g6 {[%clk 00:02:26]} {[%emt 00:02:36]} 35. Rxc5 {[%clk 00:16:33]}
{[%emt 00:00:02]} Rd8 {[%clk 00:02:36]} {[%emt 00:00:19]} 36. Rgc3 {[%clk
00:16:37]} {[%emt 00:00:26]} Rd7 {[%clk 00:02:48]} {[%emt 00:00:18]} 37. a5
{[%clk 00:16:18]} {[%emt 00:00:49]} c6 {[%clk 00:00:54]} {[%emt 00:02:25]} 38.
Rxc6 {[%clk 00:16:18]} {[%emt 00:00:30]} Re7 {[%clk 00:01:21]} {[%emt
00:00:02]} 39. a6 {[%clk 00:10:54]} {[%emt 00:05:54]} Rbd7 {[%clk 00:01:20]}
{[%emt 00:00:30]} 40. Rc8+ {[%clk 00:09:45]} {[%emt 00:01:39]} Kg7 {[%clk
00:01:42]} {[%emt 00:00:08]} 41. Rd3 {[%clk 00:08:20]} {[%emt 00:01:56]} Rc7
{[%clk 00:01:06]} {[%emt 00:01:06]} 42. Rdd8 {[%clk 00:08:13]} {[%emt
00:00:36]} Be6 {[%clk 00:00:41]} {[%emt 00:00:55]} 43. Rxc7 {[%clk 00:07:50]}
{[%emt 00:00:54]} Rxc7 {[%clk 00:01:10]} {[%emt 00:00:02]} 44. Bd3 {[%clk
00:06:58]} {[%emt 00:01:21]} Kf6 {[%clk 00:00:49]} {[%emt 00:00:51]} 45. b4
{[%clk 00:06:19]} {[%emt 00:01:08]} Ke5 {[%clk 00:26:44]} {[%emt 00:04:35]} 46.
b5 {[%clk 00:35:50]} {[%emt 00:01:00]} Bd5 {[%clk 00:17:39]} {[%emt 00:09:35]}
47. c4 {[%clk 00:35:39]} {[%emt 00:00:41]} Be6 {[%clk 00:16:02]} {[%emt
00:02:06]} 48. c5 {[%clk 00:35:28]} {[%emt 00:00:42]} Rxc5 {[%clk 00:09:29]}
{[%emt 00:07:02]} 49. b6 {[%clk 00:35:43]} {[%emt 00:00:16]} axb6 {[%clk
00:09:48]} {[%emt 00:00:10]} 50. a7 {[%clk 00:36:04]} {[%emt 00:00:10]} Bd5
{[%clk 00:10:04]} {[%emt 00:00:13]} 51. Rxd5+ {[%clk 00:35:01]} {[%emt
00:01:34]} Rxd5 {[%clk 00:10:31]} {[%emt 00:00:02]} 52. a8=Q {[%clk 00:34:59]}
{[%emt 00:00:33]} Rxd3 {[%clk 00:10:56]} {[%emt 00:00:04]} 53. Qh8+ {[%clk
00:33:42]} {[%emt 00:01:47]} Kf5 {[%clk 00:10:41]} {[%emt 00:00:44]} 54. Qxh7
{[%clk 00:33:55]} {[%emt 00:00:18]} Rd6 {[%clk 00:10:21]} {[%emt 00:00:50]} 55.
Qf7+ {[%clk 00:34:18]} {[%emt 00:00:07]} Ke5 {[%clk 00:10:40]} {[%emt
00:00:11]} 56. Qb7 {[%clk 00:33:22]} {[%emt 00:01:27]} Kd4 {[%clk 00:10:30]}
{[%emt 00:00:39]} 57. Kf2 {[%clk 00:33:36]} {[%emt 00:00:16]} Kc5 {[%clk
00:10:39]} {[%emt 00:00:21]} 58. Qc7+ {[%clk 00:32:21]} {[%emt 00:01:46]} Rc6
{[%clk 00:11:01]} {[%emt 00:00:08]} 59. Qe5+ {[%clk 00:32:45]} {[%emt
00:00:05]} Kb4 {[%clk 00:11:02]} {[%emt 00:00:30]} 60. Qe4+ {[%clk 00:32:47]}
{[%emt 00:00:27]} Kb5 {[%clk 00:08:55]} {[%emt 00:02:37]} 61. Qd5+ {[%clk
00:32:59]} {[%emt 00:00:18]} Rc5 {[%clk 00:09:10]} {[%emt 00:00:15]} 62. Qd3+
{[%clk 00:33:22]} {[%emt 00:00:06]} Ka4 {[%clk 00:08:58]} {[%emt 00:00:41]} 63.
Qxg6 {[%clk 00:33:41]} {[%emt 00:00:14]} b5 {[%clk 00:08:52]} {[%emt 00:00:36]}
64. Qa6+ {[%clk 00:31:23]} {[%emt 00:02:48]} Kb3 {[%clk 00:09:05]} {[%emt
00:00:16]} 65. Qe6+ {[%clk 00:31:38]} {[%emt 00:00:15]} Kc3 {[%clk 00:07:08]}
{[%emt 00:02:27]} 66. Ke2 {[%clk 00:31:21]} {[%emt 00:00:47]} Rc4 {[%clk
00:01:47]} {[%emt 00:05:51]} 67. Qd5 {[%clk 00:31:43]} {[%emt 00:00:08]} 1-0

[Event "The Allsvenskan 2024/25 Div I 3: SS Manhem - Linkopings ASS"]
[Site "Goteborgs Schackcentrum, Vegatan 20, Gothenburg, Sweden"]
[Date "2025.03.15"]
[Round "1.5"]
[White "Rosenbecker, Daniel"]
[Black "Akesson, Joel"]
[Result "1/2-1/2"]
[TimeControl "90 minutes for 40 moves + 30 minutes for the rest of the game + 30 seconds per move from move one."]
[WhiteTitle "CM"]
[BlackTitle "FM"]
[WhiteFideId "1718959"]
[BlackFideId "1705040"]
[WhiteElo "2110"]
[BlackElo "2224"]

1. e4 {[%clk 01:30:55]} {[%emt 00:00:04]} e6 {[%clk 01:30:54]} {[%emt
00:00:06]} 2. d4 {[%clk 01:31:21]} {[%emt 00:00:04]} d5 {[%clk 01:31:20]}
{[%emt 00:00:04]} 3. Nd2 {[%clk 01:31:48]} {[%emt 00:00:04]} Be7 {[%clk
01:31:30]} {[%emt 00:00:19]} 4. e5 {[%clk 01:32:13]} {[%emt 00:00:06]} c5
{[%clk 01:31:40]} {[%emt 00:00:20]} 5. c3 {[%clk 01:32:38]} {[%emt 00:00:05]}
cxd4 {[%clk 01:31:44]} {[%emt 00:00:27]} 6. cxd4 {[%clk 01:33:02]} {[%emt
00:00:05]} Qb6 {[%clk 01:32:01]} {[%emt 00:00:12]} 7. Ndf3 {[%clk 01:25:50]}
{[%emt 00:07:43]} Bb4+ {[%clk 01:29:51]} {[%emt 00:02:39]} 8. Bd2 {[%clk
01:26:03]} {[%emt 00:00:17]} Nc6 {[%clk 01:29:37]} {[%emt 00:00:44]} 9. a3
{[%clk 01:10:45]} {[%emt 00:15:49]} Bxd2+ {[%clk 01:25:17]} {[%emt 00:04:50]}
10. Qxd2 {[%clk 01:11:11]} {[%emt 00:00:04]} Bd7 {[%clk 01:21:59]} {[%emt
00:03:46]} 11. Bd3 {[%clk 01:07:57]} {[%emt 00:03:46]} Nxd4 {[%clk 01:03:46]}
{[%emt 00:18:43]} 12. Nxd4 {[%clk 01:08:17]} {[%emt 00:00:10]} Qxd4 {[%clk
01:04:11]} {[%emt 00:00:04]} 13. Nf3 {[%clk 01:08:40]} {[%emt 00:00:07]} Qb6
{[%clk 01:04:00]} {[%emt 00:00:41]} 14. Qg5 {[%clk 01:00:05]} {[%emt 00:09:05]}
Kf8 {[%clk 00:51:16]} {[%emt 00:13:13]} 15. Qf4 {[%clk 00:54:26]} {[%emt
00:06:10]} h6 {[%clk 00:43:13]} {[%emt 00:08:33]} 16. O-O {[%clk 00:53:16]}
{[%emt 00:01:40]} Ne7 {[%clk 00:42:25]} {[%emt 00:01:18]} 17. b4 {[%clk
00:45:52]} {[%emt 00:07:55]} Bb5 {[%clk 00:38:57]} {[%emt 00:03:57]} 18. Bxb5
{[%clk 00:45:56]} {[%emt 00:00:27]} Qxb5 {[%clk 00:39:20]} {[%emt 00:00:06]} 19.
Rfc1 {[%clk 00:44:10]} {[%emt 00:02:17]} Qd7 {[%clk 00:34:14]} {[%emt
00:05:36]} 20. Nd4 {[%clk 00:42:35]} {[%emt 00:02:05]} Kg8 {[%clk 00:33:32]}
{[%emt 00:01:10]} 21. a4 {[%clk 00:33:38]} {[%emt 00:09:29]} Ng6 {[%clk
00:27:32]} {[%emt 00:06:30]} 22. Qe3 {[%clk 00:32:55]} {[%emt 00:01:13]} Kh7
{[%clk 00:27:25]} {[%emt 00:00:37]} 23. Nb5 {[%clk 00:27:38]} {[%emt 00:05:48]}
Rhc8 {[%clk 00:24:54]} {[%emt 00:02:59]} 24. Rxc8 {[%clk 00:20:12]} {[%emt
00:07:57]} Rxc8 {[%clk 00:24:44]} {[%emt 00:00:38]} 25. Nd6 {[%clk 00:20:39]}
{[%emt 00:00:04]} Rc7 {[%clk 00:23:38]} {[%emt 00:01:37]} 26. g3 {[%clk
00:19:36]} {[%emt 00:01:33]} b6 {[%clk 00:22:31]} {[%emt 00:01:36]} 27. h4
{[%clk 00:20:02]} {[%emt 00:00:05]} Kg8 {[%clk 00:17:11]} {[%emt 00:05:50]} 28.
h5 {[%clk 00:20:20]} {[%emt 00:00:12]} Ne7 {[%clk 00:17:29]} {[%emt 00:00:11]}
29. a5 {[%clk 00:20:04]} {[%emt 00:00:47]} b5 {[%clk 00:17:06]} {[%emt
00:00:51]} 30. a6 {[%clk 00:12:19]} {[%emt 00:08:18]} Nc8 {[%clk 00:13:34]}
{[%emt 00:04:01]} 31. Rc1 {[%clk 00:07:47]} {[%emt 00:05:02]} Rxc1+ {[%clk
00:08:24]} {[%emt 00:05:40]} 32. Qxc1 {[%clk 00:08:13]} {[%emt 00:00:04]} Nxd6
{[%clk 00:08:45]} {[%emt 00:00:08]} 33. exd6 {[%clk 00:08:36]} {[%emt
00:00:08]} Qxd6 {[%clk 00:09:02]} {[%emt 00:00:13]} 34. Qc8+ {[%clk 00:08:58]}
{[%emt 00:00:07]} Kh7 {[%clk 00:09:24]} {[%emt 00:00:08]} 35. Qc2+ {[%clk
00:09:18]} {[%emt 00:00:10]} f5 {[%clk 00:08:43]} {[%emt 00:01:11]} 36. Qc5
{[%clk 00:09:29]} {[%emt 00:00:19]} Qxa6 {[%clk 00:08:58]} {[%emt 00:00:15]} 37.
Qe7 {[%clk 00:08:20]} {[%emt 00:01:40]} Qa1+ {[%clk 00:07:38]} {[%emt
00:01:49]} 38. Kg2 {[%clk 00:08:37]} {[%emt 00:00:15]} Qe1 {[%clk 00:06:41]}
{[%emt 00:01:25]} 39. Qe8 {[%clk 00:05:47]} {[%emt 00:03:21]} Qe4+ {[%clk
00:05:19]} {[%emt 00:01:52]} 40. f3 {[%clk 00:06:00]} {[%emt 00:00:18]} Qe2+
{[%clk 00:03:45]} {[%emt 00:02:02]} 41. Kh3 {[%clk 00:04:43]} {[%emt 00:01:47]}
Qf1+ {[%clk 00:03:31]} {[%emt 00:00:43]} 42. Kh2 {[%clk 00:05:07]} {[%emt
00:00:08]} Qxf3 {[%clk 00:03:16]} {[%emt 00:00:44]} 43. Qg6+ {[%clk 00:05:31]}
{[%emt 00:00:07]} Kh8 {[%clk 00:03:38]} {[%emt 00:00:07]} 44. Qe8+ {[%clk
00:05:57]} {[%emt 00:00:04]} 1/2-1/2

[Event "The Allsvenskan 2024/25 Div I 3: SS Manhem - Linkopings ASS"]
[Site "Goteborgs Schackcentrum, Vegatan 20, Gothenburg, Sweden"]
[Date "2025.03.15"]
[Round "1.6"]
[White "Fendrich, David"]
[Black "Rogoz, Vladyslav"]
[Result "0-1"]
[TimeControl "90 minutes for 40 moves + 30 minutes for the rest of the game + 30 seconds per move from move one."]
[WhiteFideId "1705725"]
[BlackFideId "14176521"]
[WhiteElo "2192"]
[BlackElo "2099"]

1. g3 {[%clk 01:30:57]} {[%emt 00:00:03]} d5 {[%clk 01:29:12]} {[%emt
00:01:49]} 2. c4 {[%clk 01:31:15]} {[%emt 00:00:11]} c6 {[%clk 01:28:24]}
{[%emt 00:01:19]} 3. Bg2 {[%clk 01:31:28]} {[%emt 00:00:16]} Nf6 {[%clk
01:28:24]} {[%emt 00:00:30]} 4. Nf3 {[%clk 01:31:52]} {[%emt 00:00:07]} g6
{[%clk 01:28:27]} {[%emt 00:00:27]} 5. b3 {[%clk 01:30:59]} {[%emt 00:01:22]}
Bg7 {[%clk 01:28:44]} {[%emt 00:00:13]} 6. Bb2 {[%clk 01:31:23]} {[%emt
00:00:06]} dxc4 {[%clk 01:25:01]} {[%emt 00:04:14]} 7. bxc4 {[%clk 01:31:08]}
{[%emt 00:00:44]} Qb6 {[%clk 01:25:20]} {[%emt 00:00:11]} 8. Qb3 {[%clk
01:28:48]} {[%emt 00:02:51]} Nbd7 {[%clk 01:24:25]} {[%emt 00:01:24]} 9. d4
{[%clk 01:27:09]} {[%emt 00:02:09]} Ne4 {[%clk 01:23:22]} {[%emt 00:01:33]} 10.
O-O {[%clk 01:18:15]} {[%emt 00:09:24]} O-O {[%clk 01:18:18]} {[%emt 00:05:34]}
11. Rd1 {[%clk 00:57:11]} {[%emt 00:21:35]} Ndc5 {[%clk 01:14:39]} {[%emt
00:04:09]} 12. Qa3 {[%clk 00:44:42]} {[%emt 00:12:59]} Na4 {[%clk 01:04:53]}
{[%emt 00:10:16]} 13. Bc1 {[%clk 00:44:03]} {[%emt 00:01:09]} Qa6 {[%clk
01:04:56]} {[%emt 00:00:27]} 14. Nbd2 {[%clk 00:30:00]} {[%emt 00:14:33]} Nec3
{[%clk 01:03:47]} {[%emt 00:01:39]} 15. Re1 {[%clk 00:29:14]} {[%emt 00:01:15]}
c5 {[%clk 01:00:29]} {[%emt 00:03:48]} 16. Nb3 {[%clk 00:20:30]} {[%emt
00:09:14]} Qxc4 {[%clk 00:59:40]} {[%emt 00:01:19]} 17. Be3 {[%clk 00:18:23]}
{[%emt 00:02:38]} Bd7 {[%clk 00:50:02]} {[%emt 00:10:07]} 18. Rac1 {[%clk
00:16:19]} {[%emt 00:02:34]} Nxe2+ {[%clk 00:48:23]} {[%emt 00:02:09]} 19. Rxe2
{[%clk 00:16:16]} {[%emt 00:00:33]} Qxe2 {[%clk 00:48:34]} {[%emt 00:00:20]} 20.
dxc5 {[%clk 00:12:05]} {[%emt 00:04:40]} Bb2 {[%clk 00:43:30]} {[%emt
00:05:33]} 21. Qb4 {[%clk 00:10:58]} {[%emt 00:01:38]} Bxc1 {[%clk 00:43:48]}
{[%emt 00:00:12]} 22. Nxc1 {[%clk 00:10:48]} {[%emt 00:00:40]} Qd1+ {[%clk
00:42:51]} {[%emt 00:01:27]} 23. Ne1 {[%clk 00:11:07]} {[%emt 00:00:10]} a5
{[%clk 00:42:36]} {[%emt 00:00:46]} 0-1

[Event "The Allsvenskan 2024/25 Div I 3: SS Manhem - Linkopings ASS"]
[Site "Goteborgs Schackcentrum, Vegatan 20, Gothenburg, Sweden"]
[Date "2025.03.15"]
[Round "1.7"]
[White "Malm, Simon"]
[Black "Karlsson, Stefan"]
[Result "0-1"]
[TimeControl "90 minutes for 40 moves + 30 minutes for the rest of the game + 30 seconds per move from move one."]
[WhiteFideId "1759825"]
[BlackFideId "1771183"]
[WhiteElo "1976"]
[BlackElo "2030"]

1. d4 {[%clk 01:30:52]} {[%emt 00:00:09]} d5 {[%clk 01:30:34]} {[%emt
00:00:26]} 2. c4 {[%clk 01:31:01]} {[%emt 00:00:20]} c6 {[%clk 01:30:59]}
{[%emt 00:00:06]} 3. Nc3 {[%clk 01:31:13]} {[%emt 00:00:18]} Nf6 {[%clk
01:31:23]} {[%emt 00:00:06]} 4. e3 {[%clk 01:30:28]} {[%emt 00:01:15]} Bf5
{[%clk 01:30:47]} {[%emt 00:01:05]} 5. cxd5 {[%clk 01:29:33]} {[%emt 00:01:26]}
cxd5 {[%clk 01:31:11]} {[%emt 00:00:06]} 6. Qb3 {[%clk 01:29:55]} {[%emt
00:00:08]} Nc6 {[%clk 01:31:27]} {[%emt 00:00:13]} 7. Qxb7 {[%clk 01:27:42]}
{[%emt 00:02:44]} Bd7 {[%clk 01:31:56]} {[%emt 00:00:02]} 8. Qb3 {[%clk
01:27:57]} {[%emt 00:00:14]} Rb8 {[%clk 01:29:28]} {[%emt 00:02:58]} 9. Qd1
{[%clk 01:28:19]} {[%emt 00:00:08]} e5 {[%clk 01:23:56]} {[%emt 00:06:02]} 10.
dxe5 {[%clk 01:28:03]} {[%emt 00:00:47]} Nxe5 {[%clk 01:24:10]} {[%emt
00:00:16]} 11. Be2 {[%clk 01:21:51]} {[%emt 00:06:41]} Bd6 {[%clk 01:23:22]}
{[%emt 00:01:17]} 12. Nf3 {[%clk 01:21:44]} {[%emt 00:00:37]} Nxf3+ {[%clk
01:20:59]} {[%emt 00:02:54]} 13. Bxf3 {[%clk 01:19:45]} {[%emt 00:02:29]} Qc7
{[%clk 01:17:52]} {[%emt 00:03:37]} 14. h3 {[%clk 01:06:29]} {[%emt 00:13:47]}
O-O {[%clk 01:17:26]} {[%emt 00:00:54]} 15. O-O {[%clk 01:05:18]} {[%emt
00:01:41]} Bh2+ {[%clk 01:07:16]} {[%emt 00:10:41]} 16. Kh1 {[%clk 01:05:46]}
{[%emt 00:00:03]} Be5 {[%clk 01:07:30]} {[%emt 00:00:15]} 17. Qd2 {[%clk
00:31:33]} {[%emt 00:34:43]} Rfd8 {[%clk 01:05:07]} {[%emt 00:02:52]} 18. Ne2
{[%clk 00:25:37]} {[%emt 00:06:27]} Bb5 {[%clk 00:55:18]} {[%emt 00:10:18]} 19.
Rd1 {[%clk 00:21:29]} {[%emt 00:04:39]} Ba4 {[%clk 00:46:21]} {[%emt 00:09:25]}
20. Re1 {[%clk 00:19:11]} {[%emt 00:02:51]} Ne4 {[%clk 00:43:16]} {[%emt
00:03:33]} 21. Bxe4 {[%clk 00:19:02]} {[%emt 00:00:41]} dxe4 {[%clk 00:43:44]}
{[%emt 00:00:02]} 22. Nd4 {[%clk 00:19:21]} {[%emt 00:00:11]} Qb6 {[%clk
00:29:28]} {[%emt 00:14:45]} 23. b3 {[%clk 00:17:35]} {[%emt 00:02:15]} Bd7
{[%clk 00:29:33]} {[%emt 00:00:25]} 24. Qe2 {[%clk 00:14:36]} {[%emt 00:03:30]}
Qh6 {[%clk 00:27:38]} {[%emt 00:02:25]} 25. f4 {[%clk 00:11:47]} {[%emt
00:03:18]} exf3 {[%clk 00:25:53]} {[%emt 00:02:16]} 26. Qxf3 {[%clk 00:12:00]}
{[%emt 00:00:17]} Rb6 {[%clk 00:22:35]} {[%emt 00:03:47]} 27. e4 {[%clk
00:06:00]} {[%emt 00:06:31]} Qh4 {[%clk 00:21:04]} {[%emt 00:02:00]} 28. Be3
{[%clk 00:03:35]} {[%emt 00:02:55]} Rf6 {[%clk 00:02:56]} {[%emt 00:18:38]} 29.
Nf5 {[%clk 00:03:00]} {[%emt 00:01:06]} Bxf5 {[%clk 00:02:59]} {[%emt
00:00:28]} 30. exf5 {[%clk 00:02:20]} {[%emt 00:01:10]} Bxa1 {[%clk 00:02:43]}
{[%emt 00:00:45]} 31. Rxa1 {[%clk 00:02:27]} {[%emt 00:00:22]} a6 {[%clk
00:01:34]} {[%emt 00:01:40]} 32. Rf1 {[%clk 00:01:14]} {[%emt 00:01:44]} g6
{[%clk 00:00:54]} {[%emt 00:01:09]} 33. g4 {[%clk 00:01:03]} {[%emt 00:00:41]}
h5 {[%clk 00:00:50]} {[%emt 00:00:34]} 34. Rg1 {[%clk 00:00:56]} {[%emt
00:00:37]} hxg4 {[%clk 00:01:00]} {[%emt 00:00:20]} 35. Rxg4 {[%clk 00:00:57]}
{[%emt 00:00:30]} Qh5 {[%clk 00:00:43]} {[%emt 00:00:46]} 36. Bg5 {[%clk
00:00:57]} {[%emt 00:00:30]} Rxf5 {[%clk 00:00:58]} {[%emt 00:00:15]} 37. Qg3
{[%clk 00:00:35]} {[%emt 00:00:53]} Re8 {[%clk 00:00:49]} {[%emt 00:00:38]} 38.
Bd2 {[%clk 00:00:32]} {[%emt 00:00:33]} Rf1+ {[%clk 00:00:49]} {[%emt
00:00:29]} 39. Kg2 {[%clk 00:00:44]} {[%emt 00:00:19]} Qf5 {[%clk 00:00:48]}
{[%emt 00:00:30]} 40. Bf4 {[%clk 00:00:33]} {[%emt 00:00:42]} Ree1 {[%clk
00:00:41]} {[%emt 00:00:36]} 41. Qc3 {[%clk 00:23:06]} {[%emt 00:07:57]} Qd5+
{[%clk 00:25:58]} {[%emt 00:05:12]} 0-1

[Event "The Allsvenskan 2024/25 Div I 3: SS Manhem - Linkopings ASS"]
[Site "Goteborgs Schackcentrum, Vegatan 20, Gothenburg, Sweden"]
[Date "2025.03.15"]
[Round "1.8"]
[White "Lindholm, Gustav"]
[Black "Carlsson, Ingvar"]
[Result "1-0"]
[TimeControl "90 minutes for 40 moves + 30 minutes for the rest of the game + 30 seconds per move from move one."]
[WhiteFideId "1736515"]
[BlackFideId "1702670"]
[WhiteElo "2112"]
[BlackElo "1995"]

1. d4 {[%clk 01:30:58]} {[%emt 00:00:02]} f5 {[%clk 01:30:48]} {[%emt
00:00:13]} 2. Bg5 {[%clk 01:31:23]} {[%emt 00:00:04]} h6 {[%clk 01:30:55]}
{[%emt 00:00:23]} 3. Bh4 {[%clk 01:31:49]} {[%emt 00:00:04]} g5 {[%clk
01:30:58]} {[%emt 00:00:26]} 4. e3 {[%clk 01:31:56]} {[%emt 00:00:25]} Nf6
{[%clk 01:31:13]} {[%emt 00:00:15]} 5. Bg3 {[%clk 01:32:22]} {[%emt 00:00:04]}
Bg7 {[%clk 01:30:11]} {[%emt 00:01:31]} 6. c4 {[%clk 01:30:59]} {[%emt
00:01:52]} d6 {[%clk 01:28:35]} {[%emt 00:02:07]} 7. Nc3 {[%clk 01:29:42]}
{[%emt 00:01:47]} O-O {[%clk 01:26:53]} {[%emt 00:02:12]} 8. Bd3 {[%clk
01:29:03]} {[%emt 00:01:07]} e6 {[%clk 01:21:44]} {[%emt 00:05:41]} 9. Nge2
{[%clk 01:26:11]} {[%emt 00:03:21]} Nh5 {[%clk 01:07:42]} {[%emt 00:14:33]} 10.
h3 {[%clk 01:20:22]} {[%emt 00:06:19]} f4 {[%clk 00:53:40]} {[%emt 00:14:32]}
11. Bh2 {[%clk 01:18:16]} {[%emt 00:02:36]} e5 {[%clk 00:37:23]} {[%emt
00:16:48]} 12. Be4 {[%clk 01:14:23]} {[%emt 00:04:20]} fxe3 {[%clk 00:29:24]}
{[%emt 00:08:31]} 13. fxe3 {[%clk 01:13:45]} {[%emt 00:01:07]} exd4 {[%clk
00:29:07]} {[%emt 00:00:49]} 14. Nxd4 {[%clk 01:12:22]} {[%emt 00:01:52]} Nf6
{[%clk 00:29:02]} {[%emt 00:00:35]} 15. O-O {[%clk 01:06:29]} {[%emt 00:06:23]}
g4 {[%clk 00:20:08]} {[%emt 00:09:24]} 16. Bf5 {[%clk 01:05:48]} {[%emt
00:01:10]} gxh3 {[%clk 00:19:15]} {[%emt 00:01:23]} 17. gxh3 {[%clk 01:05:52]}
{[%emt 00:00:26]} Nc6 {[%clk 00:18:35]} {[%emt 00:01:10]} 18. Kh1 {[%clk
01:03:30]} {[%emt 00:02:52]} Nxd4 {[%clk 00:18:20]} {[%emt 00:00:46]} 19. exd4
{[%clk 01:03:35]} {[%emt 00:00:25]} Bxf5 {[%clk 00:14:34]} {[%emt 00:04:16]} 20.
Rxf5 {[%clk 01:03:59]} {[%emt 00:00:06]} Qd7 {[%clk 00:11:54]} {[%emt
00:03:10]} 21. Qd3 {[%clk 01:01:49]} {[%emt 00:02:41]} Nh7 {[%clk 00:10:45]}
{[%emt 00:01:37]} 22. Raf1 {[%clk 00:57:20]} {[%emt 00:05:00]} Rxf5 {[%clk
00:10:55]} {[%emt 00:00:20]} 23. Rxf5 {[%clk 00:57:30]} {[%emt 00:00:20]} Bxd4
{[%clk 00:08:31]} {[%emt 00:02:53]} 24. Bf4 {[%clk 00:42:43]} {[%emt 00:15:18]}
Bg7 {[%clk 00:03:30]} {[%emt 00:05:31]} 25. Qd5+ {[%clk 00:41:03]} {[%emt
00:02:09]} Kh8 {[%clk 00:03:58]} {[%emt 00:00:03]} 26. Qxb7 {[%clk 00:40:53]}
{[%emt 00:00:40]} Re8 {[%clk 00:03:42]} {[%emt 00:00:46]} 27. Qd5 {[%clk
00:39:33]} {[%emt 00:01:48]} Nf6 {[%clk 00:03:35]} {[%emt 00:00:39]} 28. Qd3
{[%clk 00:39:27]} {[%emt 00:00:35]} Ne4 {[%clk 00:03:19]} {[%emt 00:00:46]} 29.
Qd5 {[%clk 00:38:37]} {[%emt 00:01:21]} Nxc3 {[%clk 00:01:47]} {[%emt
00:02:01]} 30. bxc3 {[%clk 00:39:04]} {[%emt 00:00:04]} Qe7 {[%clk 00:01:54]}
{[%emt 00:00:22]} 31. Kh2 {[%clk 00:36:41]} {[%emt 00:02:53]} Qe1 {[%clk
00:01:07]} {[%emt 00:01:18]} 32. h4 {[%clk 00:35:42]} {[%emt 00:01:29]} Qxh4+
{[%clk 00:01:08]} {[%emt 00:00:29]} 33. Kg2 {[%clk 00:36:08]} {[%emt 00:00:03]}
Re2+ {[%clk 00:01:22]} {[%emt 00:00:17]} 34. Kf3 {[%clk 00:36:24]} {[%emt
00:00:14]} Qh5+ {[%clk 00:00:52]} {[%emt 00:01:00]} 35. Rxh5 {[%clk 00:36:38]}
{[%emt 00:00:17]} 1-0